bitfinex-derivatives/quotes_SOLF0:USTF0_20250312
["timestamp","ask_amount","ask_price","bid_price","bid_amount"]
[1741806567005,0.05762608,124.07,124.04,0.05428412]
[1741806567212,0.05762608,124.07,124.04,32.77428412]
[1741806567806,0.05762608,124.07,124.05,8.0623]
[1741806568406,0.05762608,124.07,124.04,32.77428412]
[1741806568607,0.05762608,124.07,124.05,8.0623]
[1741806568904,0.05762608,124.07,124.04,32.77428412]
[1741806569312,32.72,124.12,124.04,53.84157188]
[1741806569506,4.41803875,124.11,124.05,4.3518]
[1741806569809,4.41803875,124.11,124.07,8.0611]
[1741806570013,12.47713875,124.11,124.05,4.3518]
[1741806570311,0.03280449,124.09,124.07,0.05844023]
[1741806571208,4.45743734,124.09,124.07,0.05844023]
[1741806571412,4.45743734,124.09,124.08,8.0607]
[1741806571614,0.03280449,124.09,124.07,0.05844023]
[1741806572616,0.03280449,124.09,124.08,8.0607]
[1741806574211,0.03280449,124.09,124.07,0.05844023]
[1741806574212,53.76728776,124.14,124.07,0.05844023]
[1741806574517,4.42276552,124.13,124.07,0.05844023]
[1741806574816,4.42276552,124.12,124.07,0.05844023]
[1741806575017,4.42276552,124.11,124.07,0.05844023]
[1741806575216,53.76728776,124.14,124.07,0.05844023]
[1741806575418,4.42222194,124.13,124.07,0.05844023]
[1741806575717,8.059,124.11,124.08,8.0604]
[1741806576111,8.059,124.11,124.08,8.11699736]
[1741806576513,8.059,124.11,124.09,8.06]
[1741806577418,8.059,124.11,124.08,0.05659736]
[1741806577614,8.0601,124.09,124.08,0.05659736]
[1741806578013,21.06728776,124.1,124.05,241.86]
[1741806578213,4.42017469,124.09,124.02,2.0035]
[1741806578418,21.06728776,124.06,124.02,2.0035]
[1741806578721,8.0627,124.05,124.02,10.0678]
[1741806578911,32.7,124.07,124.02,2.0035]
[1741806579316,8.11876472,124.06,124.03,8.12346795]
[1741806579825,8.0627,124.05,124.03,0.05956795]
[1741806580022,0.05646472,124.06,124.03,0.05956795]
[1741806580322,8.11876472,124.06,124.03,8.12326795]
[1741806580820,0.05646472,124.06,124.03,8.12326795]
[1741806583422,0.05646472,124.06,124.04,8.0633]
[1741806584324,13.53709874,124.06,124.03,8.12306795]
[1741806584723,13.53709874,124.06,124.03,0.05956795]
[1741806585324,13.53709874,124.06,124.04,8.0633]
[1741806585526,13.53709874,124.06,124.03,0.05956795]
[1741806586526,13.53709874,124.06,124.04,8.0627]
[1741806587028,13.53709874,124.06,124.05,8.0627]
[1741806587723,13.53709874,124.06,124.03,0.05956795]
[1741806587724,13.53709874,124.06,124.04,8.063]
[1741806588326,13.48063402,124.05,124.03,8.12316795]
[1741806588722,13.48063402,124.04,124.03,8.12316795]
[1741806588921,13.48063402,124.05,124.03,8.12316795]
[1741806589128,13.53709874,124.06,124.03,0.05956795]
[1741806589730,13.53709874,124.06,124.04,8.0633]
[1741806590127,13.53709874,124.06,124.03,0.05956795]
[1741806590631,0.05646472,124.06,124.03,0.05956795]
[1741806590829,0.05646472,124.06,124.05,8.0627]
[1741806591030,17.91480892,124.11,124.05,13.48063402]
[1741806591227,4.4341749,124.1,124.06,13.48063402]
[1741806591428,4.4341749,124.09,124.08,8.0604]
[1741806591828,13.48063402,124.11,124.08,8.0604]
[1741806592136,4.43552058,124.1,124.09,8.0601]
[1741806592530,4.4350478,124.12,124.08,13.53491355]
[1741806592835,4.4350478,124.11,124.08,13.53491355]
[1741806593034,57.07182125,124.13,124.08,13.53491355]
[1741806593234,4.43351666,124.12,124.1,8.0593]
[1741806593433,4.43351666,124.11,124.1,8.0593]
[1741806593826,17.91415068,124.12,124.1,8.0593]
[1741806594030,4.43351666,124.11,124.1,8.0593]
[1741806594737,4.43351666,124.11,124.09,8.0597]
[1741806595537,4.43351666,124.11,124.09,8.0601]
[1741806595734,21.53823402,124.13,124.09,8.0601]
[1741806595940,4.43317118,124.12,124.09,13.48063402]
[1741806596132,4.43317118,124.11,124.09,13.48063402]
[1741806596428,21.53823402,124.13,124.08,13.53491355]
[1741806596634,4.43351562,124.12,124.08,13.53491355]
[1741806596830,4.43351562,124.11,124.08,13.53491355]
[1741806597031,21.53823402,124.13,124.09,8.0596]
[1741806597226,4.43345511,124.12,124.09,8.0596]
[1741806597431,4.43345511,124.11,124.1,8.0594]
[1741806597632,4.43345511,124.12,124.1,8.0594]
[1741806597932,4.43345511,124.11,124.1,8.0594]
[1741806598130,4.43345511,124.12,124.1,8.0594]
[1741806598330,4.43345511,124.11,124.1,8.0594]
[1741806598531,4.43345511,124.12,124.1,8.0594]
[1741806598829,4.43345511,124.11,124.1,8.0594]
[1741806599023,4.43345511,124.12,124.1,8.0594]
[1741806599225,4.43345511,124.11,124.1,8.0594]
[1741806599427,4.43345511,124.12,124.1,8.0594]
[1741806599632,4.43345511,124.11,124.1,8.0594]
[1741806599833,4.43345511,124.12,124.1,8.0594]
[1741806600137,4.43345511,124.11,124.1,8.0594]
[1741806600340,4.43345511,124.12,124.1,8.0594]
[1741806600539,4.43345511,124.11,124.09,8.0598]
[1741806600741,13.48063402,124.11,124.09,8.0598]
[1741806600941,4.43369199,124.1,124.08,0.05427953]
[1741806601140,17.91432601,124.1,124.08,8.11497953]
[1741806601341,13.48063402,124.1,124.08,8.11497953]
[1741806601743,13.48063402,124.11,124.09,8.0597]
[1741806601947,4.43513422,124.1,124.09,8.0597]
[1741806602340,13.48063402,124.12,124.09,8.0597]
[1741806602545,4.43642226,124.11,124.1,8.0594]
[1741806603145,4.43642226,124.11,124.09,8.0595]
[1741806603350,4.43744999,124.1,124.09,8.0595]
[1741806603649,4.43744999,124.1,124.09,8.0601]
[1741806603848,4.43744999,124.11,124.09,8.0601]
[1741806604055,4.43744999,124.1,124.09,8.0601]
[1741806604457,4.43744999,124.11,124.09,8.0601]
[1741806604657,4.43744999,124.1,124.09,8.0601]
[1741806605655,13.48063402,124.13,124.08,15.73851355]
[1741806605855,4.43970402,124.12,124.08,15.73851355]
[1741806606054,4.43970402,124.11,124.08,2.25787953]
[1741806606256,21.53903402,124.12,124.09,8.0597]
[1741806606555,4.4400686,124.11,124.08,2.25787953]
[1741806606859,13.48063402,124.12,124.09,8.0599]
[1741806607059,4.43807257,124.11,124.09,8.0599]
[1741806607259,21.53903402,124.12,124.09,8.0599]
[1741806607453,4.43774492,124.11,124.09,8.0599]
[1741806607654,13.48063402,124.12,124.08,10.31827953]
[1741806607853,12.49650487,124.11,124.08,10.31827953]
[1741806608053,8.059,124.11,124.08,10.31827953]
[1741806608260,8.0601,124.09,124.08,0.05427953]
[1741806608558,12.49641186,124.09,124.08,0.05427953]
[1741806609052,4.43631186,124.09,124.08,0.05427953]
[1741806609257,4.43631186,124.09,124.08,8.11497953]
[1741806609956,32.68,124.12,124.08,0.05427953]
[1741806610160,4.43488328,124.11,124.09,13.48063402]
[1741806610355,40.7386,124.12,124.09,13.48063402]
[1741806610555,4.43426628,124.11,124.08,0.05427953]
[1741806610757,54.21923402,124.12,124.08,0.05427953]
[1741806610955,4.43434538,124.11,124.09,8.06]
[1741806611151,54.21923402,124.12,124.09,8.06]
[1741806611461,12.49241654,124.11,124.08,8.11467953]
[1741806611655,4.43361654,124.1,124.08,8.11467953]
[1741806611855,12.49361786,124.09,124.08,0.05427953]
[1741806612860,4.43351786,124.09,124.05,241.8]
[1741806613062,13.48063402,124.07,124.05,241.8]
[1741806613658,46.16063402,124.09,124.05,241.8]
[1741806613856,4.48382237,124.08,124.06,0.0518068]
[1741806614458,4.48382237,124.08,124.07,8.0614]
[1741806614757,0.05243854,124.08,124.07,8.0614]
[1741806616157,4.48167019,124.08,124.07,8.0614]
[1741806616358,0.05243854,124.08,124.07,8.0614]
[1741806616561,0.05243854,124.08,124.06,8.1135068]
[1741806616862,13.53307256,124.08,124.06,0.0518068]
[1741806617164,4.43226623,124.07,124.06,0.0518068]
[1741806618066,4.43226623,124.07,124.06,8.1138068]
[1741806618970,4.43226623,124.07,124.06,0.0518068]
[1741806619360,12.49366623,124.07,124.06,0.0518068]
[1741806619564,4.43226623,124.07,124.06,0.0518068]
[1741806620457,12.49366623,124.07,124.06,0.0518068]
[1741806621062,8.0614,124.07,124.06,0.0518068]
[1741806621261,12.49880162,124.07,124.06,0.0518068]
[1741806621456,4.43740162,124.07,124.06,0.0518068]
[1741806622269,0.05243854,124.08,124.06,0.0518068]
[1741806622566,0.05243854,124.08,124.07,8.0614]
[1741806622766,4.49028039,124.08,124.06,0.0518068]
[1741806622967,4.43732604,124.07,124.06,0.0518068]
[1741806623766,4.43732604,124.07,124.06,8.1138068]
[1741806624367,0.05243854,124.08,124.06,8.1138068]
[1741806624567,4.43628089,124.07,124.06,8.1138068]
[1741806624770,4.43628089,124.07,124.06,0.0518068]
[1741806625869,4.43628089,124.07,124.06,8.1138068]
[1741806627472,17.91691491,124.07,124.06,0.0518068]
[1741806628071,4.43628089,124.07,124.06,0.0518068]
[1741806628375,0.05243854,124.08,124.06,0.0518068]
[1741806628569,0.05243854,124.08,124.07,8.0614]
[1741806629373,4.43470563,124.1,124.07,13.48063402]
[1741806629673,13.48063402,124.12,124.07,13.48063402]
[1741806629873,4.4355976,124.11,124.07,13.48063402]
[1741806630172,13.48063402,124.12,124.07,13.48063402]
[1741806630472,4.43586242,124.11,124.07,13.48063402]
[1741806630769,13.48063402,124.12,124.07,13.48063402]
[1741806630971,4.43621149,124.11,124.07,13.48063402]
[1741806631170,13.48063402,124.12,124.07,13.48063402]
[1741806631371,4.43623365,124.11,124.07,13.48063402]
[1741806631564,21.53903402,124.12,124.07,13.48063402]
[1741806631768,4.43677091,124.11,124.07,13.48063402]
[1741806632071,25.97720493,124.1,124.07,8.0609]
[1741806632276,21.54043402,124.1,124.07,8.0609]
[1741806632572,21.54043402,124.1,124.07,0.06036026]
[1741806632773,12.49807879,124.09,124.07,0.06036026]
[1741806632971,8.0602,124.09,124.07,0.06036026]
[1741806633669,21.54033402,124.1,124.07,8.12136026]
[1741806633875,4.43795035,124.09,124.07,0.06036026]
[1741806634076,13.48063402,124.1,124.07,0.06036026]
[1741806634268,13.48063402,124.1,124.09,8.0601]
[1741806634469,17.91938617,124.1,124.09,8.0601]
[1741806635773,4.43875215,124.1,124.09,8.0601]
[1741806636173,4.43914631,124.1,124.09,8.0601]
[1741806638983,4.44066173,124.1,124.09,8.0601]
[1741806642984,4.44066173,124.1,124.07,0.06036026]
[1741806643185,8.0588,124.11,124.08,8.0604]
[1741806643486,4.44149436,124.1,124.08,8.0604]
[1741806643682,8.0588,124.11,124.08,8.0604]
[1741806643884,4.44217521,124.1,124.07,0.06036026]
[1741806644084,8.0588,124.11,124.07,0.06036026]
[1741806644284,4.44258038,124.1,124.07,0.06036026]
[1741806644486,8.0595,124.1,124.07,0.06036026]
[1741806645089,13.48063402,124.12,124.07,0.06036026]
[1741806645287,4.44312543,124.11,124.07,0.06036026]
[1741806645488,4.44312543,124.1,124.07,0.06036026]
[1741806645787,21.53923402,124.12,124.09,8.0597]
[1741806645987,4.44334439,124.11,124.09,8.0597]
[1741806646186,4.44334439,124.1,124.09,8.0597]
[1741806647488,32.68,124.13,124.11,8.0584]
[1741806647693,4.44454678,124.12,124.11,8.0584]
[1741806647883,4.44454678,124.12,124.11,8.11761197]
[1741806648985,26.53200492,124.16,124.11,0.05921197]
[1741806649184,4.44656299,124.15,124.13,8.0572]
[1741806649391,4.44674567,124.14,124.13,8.0572]
[1741806649988,17.92737969,124.14,124.11,0.05921197]
[1741806650288,17.92737969,124.13,124.11,0.05921197]
[1741806650489,4.44674567,124.12,124.11,0.05921197]
[1741806651282,4.4408615,124.12,124.11,0.05921197]
[1741806652494,4.4408615,124.12,124.11,8.11801197]
[1741806652682,13.48063402,124.13,124.11,8.11801197]
[1741806652887,2.1942,124.16,124.11,0.05921197]
[1741806653082,17.92157249,124.15,124.11,0.05921197]
[1741806653286,8.0578,124.13,124.11,0.05921197]
[1741806654392,13.48063402,124.15,124.11,0.05921197]
[1741806654594,4.4399142,124.14,124.11,0.05921197]
[1741806654789,4.4399142,124.13,124.11,0.05921197]
[1741806654990,8.0578,124.13,124.11,8.11791197]
[1741806655185,13.48063402,124.15,124.11,8.11791197]
[1741806655385,13.48063402,124.15,124.11,0.05921197]
[1741806655590,21.53733402,124.15,124.12,8.0577]
[1741806655998,4.43981687,124.14,124.12,8.0577]
[1741806656302,4.43981687,124.13,124.12,8.0577]
[1741806656785,4.43914448,124.13,124.12,8.0577]
[1741806657505,21.53713402,124.15,124.11,0.05921197]
[1741806657796,4.43829988,124.14,124.11,0.05921197]
[1741806657993,21.53713402,124.15,124.12,8.0578]
[1741806658185,25.97597126,124.14,124.11,0.05921197]
[1741806658389,21.53763402,124.14,124.11,0.05921197]
[1741806658586,21.53763402,124.14,124.11,8.11771197]
[1741806658789,12.49528092,124.13,124.11,0.05921197]
[1741806658987,13.48063402,124.12,124.11,0.05921197]
[1741806659390,21.53873402,124.12,124.11,0.05921197]
[1741806659592,25.97600738,124.12,124.11,0.05921197]
[1741806660396,17.91790738,124.12,124.04,13.48063402]
[1741806660597,13.48063402,124.06,124.01,19.81573402]
[1741806661197,32.64,124.09,124.02,13.48063402]
[1741806661198,13.48063402,124.07,124.02,13.48063402]
[1741806661397,13.48063402,124.07,124.01,6.3351]
[1741806661398,32.64,124.09,124.05,13.48063402]
[1741806661603,46.12063402,124.12,124.07,13.48063402]
[1741806661799,13.48063402,124.1,124.05,21.54263402]
[1741806662106,0.06047435,124.08,124.06,13.53491936]
[1741806662297,0.06047435,124.08,124.07,13.48063402]
[1741806662502,0.06047435,124.08,124.07,23.63163402]
[1741806662700,0.06047435,124.08,124.07,15.57023402]
[1741806662999,0.06047435,124.08,124.07,2.0896]
[1741806663204,0.06047435,124.08,124.07,15.57023402]
[1741806663396,0.06047435,124.08,124.07,23.63163402]
[1741806663603,0.06047435,124.08,124.07,2.0896]
[1741806663904,4.50042609,124.08,124.06,40.75568534]
[1741806664102,0.06047435,124.08,124.06,40.75568534]
[1741806665296,0.06047435,124.08,124.07,8.0614]
[1741806665498,4.50251472,124.08,124.07,8.0614]
[1741806665697,0.06047435,124.08,124.07,8.0614]
[1741806670204,0.06047435,124.08,124.06,8.11598534]
[1741806670403,0.06047435,124.08,124.06,0.05428534]
[1741806670805,0.06047435,124.08,124.07,8.0614]
[1741806671003,4.50461206,124.08,124.07,8.0614]
[1741806671203,0.06047435,124.08,124.07,8.0614]
[1741806675202,7.435e-05,124.08,124.07,8.0614]
[1741806675408,21.05091199,124.14,124.07,2.0643]
[1741806675409,4.44459736,124.12,124.07,2.0643]
[1741806675605,34.6417,124.15,124.07,2.0643]
[1741806675805,4.44267944,124.14,124.08,21.05091199]
[1741806676003,4.44267944,124.13,124.08,21.05091199]
[1741806676305,4.44267944,124.12,124.08,21.05091199]
[1741806676506,10.0581,124.15,124.12,8.0577]
[1741806676706,4.44344418,124.14,124.12,8.0577]
[1741806676905,4.44344418,124.13,124.12,8.11241587]
[1741806677907,43.59118723,124.16,124.15,8.0562]
[1741806678304,17.8936336,124.17,124.15,8.0562]
[1741806678509,17.8936336,124.17,124.13,8.0572]
[1741806678811,8.0555,124.16,124.15,0.05948669]
[1741806679012,21.05091199,124.18,124.15,0.05948669]
[1741806679911,8.0549,124.17,124.15,0.05948669]
[1741806680108,43.59118723,124.19,124.15,0.05948669]
[1741806680509,8.0546,124.18,124.15,0.05948669]
[1741806681008,8.0553,124.17,124.15,0.05948669]
[1741806681205,21.05091199,124.2,124.15,0.05948669]
[1741806681411,8.0553,124.17,124.15,0.05948669]
[1741806681612,53.69091199,124.18,124.15,0.05948669]
[1741806682214,8.0552,124.17,124.15,0.05948669]
[1741806682409,53.69091199,124.18,124.15,0.05948669]
[1741806682804,8.0555,124.16,124.11,241.78]
[1741806683011,53.74948178,124.18,124.11,241.78]
[1741806683209,53.69091199,124.18,124.11,241.78]
[1741806683611,8.056,124.16,124.13,8.0572]
[1741806683809,53.69091199,124.18,124.11,241.78]
[1741806684016,8.11229484,124.16,124.13,8.11165283]
[1741806684711,0.05679484,124.16,124.13,0.05425283]
[1741806684910,8.11269484,124.16,124.14,8.0567]
[1741806685122,0.05679484,124.16,124.14,8.0567]
[1741806685617,0.05679484,124.16,124.14,8.0568]
[1741806686219,8.11279484,124.16,124.14,8.0568]
[1741806688021,0.05679484,124.16,124.14,8.0568]
[1741806688315,0.05679484,124.16,124.15,8.0562]
[1741806689920,4.42223295,124.16,124.15,8.0562]
[1741806690916,0.05679484,124.16,124.15,8.0562]
[1741806691317,0.05679484,124.16,124.14,8.0565]
[1741806691520,0.05679484,124.16,124.13,0.05425283]
[1741806691917,0.05679484,124.16,124.14,8.0568]
[1741806692525,8.11229484,124.16,124.14,8.0568]
[1741806694426,21.57140321,124.16,124.14,8.0568]
[1741806695029,13.51590321,124.16,124.13,0.05425283]
[1741806695525,21.57170321,124.16,124.14,8.0565]
[1741806695726,8.11259484,124.16,124.14,8.0565]
[1741806698028,0.05679484,124.16,124.14,8.0565]
[1741806699334,0.05679484,124.16,124.13,13.5133612]
[1741806699740,0.05679484,124.16,124.15,8.0562]
[1741806700635,0.05679484,124.16,124.14,8.0565]
[1741806700837,0.05679484,124.16,124.13,13.5133612]
[1741806701134,0.05679484,124.16,124.15,8.0562]
[1741806703230,54.11170837,124.21,124.18,8.0537]
[1741806703426,4.35756415,124.2,124.18,8.0537]
[1741806703740,25.86987252,124.2,124.15,13.45910837]
[1741806703929,17.81667252,124.19,124.14,15.58580837]
[1741806704130,13.45910837,124.19,124.14,15.58580837]
[1741806704332,13.45910837,124.19,124.16,8.0555]
[1741806705841,21.51320837,124.19,124.16,8.0555]
[1741806706141,13.45910837,124.19,124.15,8.10713521]
[1741806706337,8.0545,124.18,124.15,0.05133521]
[1741806706843,8.0545,124.18,124.16,8.0553]
[1741806707141,21.51320837,124.19,124.16,8.0553]
[1741806707343,13.45910837,124.19,124.16,8.0553]
[1741806707636,8.0545,124.18,124.16,8.0553]
[1741806707841,13.45910837,124.19,124.15,0.05133521]
[1741806708045,4.35485152,124.18,124.15,0.05133521]
[1741806708341,12.40925152,124.18,124.16,8.0554]
[1741806708542,8.0544,124.18,124.16,8.0554]
[1741806708838,8.0544,124.18,124.15,0.05133521]
[1741806709042,8.0544,124.18,124.15,8.10723521]
[1741806711642,4.36072403,124.17,124.15,8.10723521]
[1741806711844,45.67638723,124.22,124.15,13.51044358]
[1741806712042,50.42027697,124.21,124.15,13.51044358]
[1741806712242,4.3611686,124.2,124.15,13.51044358]
[1741806712442,4.3611686,124.19,124.17,8.0544]
[1741806712641,13.45910837,124.21,124.17,8.0544]
[1741806712838,8.0537,124.19,124.17,0.05845611]
[1741806713037,13.45910837,124.2,124.17,0.05845611]
[1741806713242,4.36152502,124.19,124.17,0.05845611]
[1741806713436,4.36152502,124.18,124.17,0.05845611]
[1741806713947,13.45910837,124.2,124.17,8.11265611]
[1741806714141,4.362342,124.19,124.17,0.05845611]
[1741806714342,13.45910837,124.2,124.17,0.05845611]
[1741806714644,4.36338929,124.19,124.17,0.05845611]
[1741806715149,21.51170837,124.21,124.18,8.0542]
[1741806715450,4.36372006,124.2,124.17,0.05845611]
[1741806715636,8.0525,124.21,124.18,8.0539]
[1741806715841,17.82527587,124.2,124.17,0.05845611]
[1741806716040,4.36580923,124.19,124.17,0.05845611]
[1741806716242,13.45910837,124.2,124.18,8.0542]
[1741806716441,13.45910837,124.2,124.17,0.05845611]
[1741806716749,13.45910837,124.2,124.18,8.0537]
[1741806717751,8.0527,124.21,124.18,8.0537]
[1741806717949,8.0527,124.21,124.17,0.05845611]
[1741806717950,12.42136641,124.2,124.17,8.11305611]
[1741806718149,8.0532,124.2,124.17,8.11305611]
[1741806718342,4.3700154,124.19,124.17,0.05845611]
[1741806718538,4.3700154,124.19,124.17,8.11275611]
[1741806718745,8.0537,124.19,124.17,0.05845611]
[1741806718945,13.45910837,124.21,124.17,0.05845611]
[1741806719248,4.36939064,124.2,124.17,0.05845611]
[1741806719549,4.36939064,124.19,124.17,8.11275611]
[1741806719844,8.0532,124.2,124.17,0.05845611]
[1741806720150,4.37096513,124.19,124.17,0.05845611]
[1741806720339,8.0532,124.2,124.17,0.05845611]
[1741806720543,4.37342589,124.19,124.17,8.11295611]
[1741806720743,4.37426327,124.18,124.17,8.11295611]
[1741806720949,4.37426327,124.18,124.17,0.05845611]
[1741806722041,4.37426327,124.18,124.12,2.1323]
[1741806722241,17.83337164,124.17,124.13,13.45910837]
[1741806722548,4.37426327,124.16,124.15,8.0562]
[1741806723148,4.37520922,124.16,124.15,8.0562]
[1741806724247,0.05890407,124.17,124.16,8.0555]
[1741806724446,0.05890407,124.17,124.15,13.45910837]
[1741806724649,0.05890407,124.17,124.15,21.51500837]
[1741806724849,0.05890407,124.17,124.15,13.45910837]
[1741806725153,0.05890407,124.17,124.16,8.0555]
[1741806725352,4.37183709,124.19,124.15,46.03910837]
[1741806725548,57.0502956,124.23,124.18,13.45910837]
[1741806725549,32.58,124.22,124.18,13.45910837]
[1741806725749,4.37185164,124.21,124.18,21.51300837]
[1741806725943,4.37185164,124.2,124.18,13.45910837]
[1741806726148,89.6302956,124.23,124.18,13.45910837]
[1741806726359,12.42188189,124.22,124.19,8.0536]
[1741806726558,4.36998189,124.21,124.19,0.06119058]
[1741806726848,51.64248723,124.23,124.2,8.0525]
[1741806727047,17.82986869,124.22,124.19,0.06119058]
[1741806727247,4.37076032,124.21,124.19,0.06119058]
[1741806727453,13.45910837,124.22,124.19,0.06119058]
[1741806727645,4.36969081,124.21,124.19,8.11469058]
[1741806727844,4.36921967,124.2,124.19,0.06119058]
[1741806728245,17.82832804,124.2,124.19,0.06119058]
[1741806728651,25.88122804,124.2,124.19,0.06119058]
[1741806728846,25.88128581,124.2,124.19,0.06119058]
[1741806729558,4.36927744,124.2,124.19,0.06119058]
[1741806730244,32.58,124.22,124.19,0.06119058]
[1741806730443,4.37168821,124.21,124.19,8.11449058]
[1741806730643,21.51030837,124.23,124.19,0.06119058]
[1741806730846,4.37133407,124.22,124.19,0.06119058]
[1741806731048,4.37133407,124.21,124.2,8.0526]
[1741806731345,18.9078709,124.24,124.19,0.06119058]
[1741806731546,4.37094751,124.23,124.2,8.0526]
[1741806731748,4.37094751,124.22,124.2,8.0526]
[1741806731945,10.8571709,124.24,124.2,21.51170837]
[1741806732145,4.3713113,124.23,124.21,8.0522]
[1741806732351,4.3713113,124.22,124.2,13.45910837]
[1741806732550,10.8571709,124.24,124.19,15.61209895]
[1741806732754,4.37117028,124.23,124.19,15.61209895]
[1741806732952,4.37117028,124.22,124.19,15.61209895]
[1741806733158,10.8571709,124.24,124.19,15.61209895]
[1741806733347,12.42123113,124.23,124.2,8.0526]
[1741806733548,4.36993113,124.22,124.2,8.0526]
[1741806733754,8.0513,124.23,124.2,8.0526]
[1741806733958,4.36902318,124.22,124.2,8.0529]
[1741806734157,15.56100837,124.25,124.2,8.0529]
[1741806734352,17.82607549,124.24,124.2,8.0529]
[1741806734660,4.36714792,124.23,124.19,0.06119058]
[1741806734957,4.36714792,124.22,124.19,0.06119058]
[1741806735153,13.45910837,124.24,124.2,8.0525]
[1741806735350,4.36658572,124.23,124.2,8.0525]
[1741806735556,4.36658572,124.22,124.2,8.0525]
[1741806735856,13.45910837,124.24,124.19,13.52029895]
[1741806736058,12.41795312,124.23,124.19,13.52029895]
[1741806736258,4.36665312,124.22,124.21,8.0521]
[1741806736559,4.36665312,124.23,124.19,13.52029895]
[1741806736761,21.50850837,124.26,124.21,13.45910837]
[1741806736959,4.36708511,124.25,124.21,13.45910837]
[1741806737160,4.36708511,124.24,124.22,0.06156286]
[1741806737360,77.84748723,124.28,124.22,0.06156286]
[1741806737560,8.0507,124.24,124.22,0.06156286]
[1741806738159,21.51010837,124.23,124.22,0.06156286]
[1741806738356,25.87225499,124.23,124.22,0.06156286]
[1741806739359,8.0535,124.2,124.14,32.56]
[1741806739562,46.01910837,124.22,124.15,13.45910837]
[1741806739770,4.3609482,124.21,124.17,13.45910837]
[1741806740069,46.01910837,124.22,124.19,8.0532]
[1741806740363,46.07499622,124.22,124.19,8.10647234]
[1741806740560,46.07499622,124.22,124.19,0.05327234]
[1741806740763,46.07499622,124.22,124.19,8.10677234]
[1741806740962,13.45910837,124.2,124.19,0.05327234]
[1741806741161,25.87194008,124.2,124.19,0.05327234]
[1741806742368,17.81904008,124.2,124.19,0.05327234]
[1741806743257,17.81904008,124.2,124.19,8.10687234]
[1741806743462,17.81904008,124.2,124.19,0.05327234]
[1741806744467,13.45910837,124.2,124.19,0.05327234]
[1741806745061,17.81944743,124.2,124.19,0.05327234]
[1741806745968,25.87234743,124.2,124.19,0.05327234]
[1741806746870,17.81944743,124.2,124.19,0.05327234]
[1741806747260,4.36033906,124.2,124.19,0.05327234]
[1741806747462,46.07499622,124.22,124.19,0.05327234]
[1741806747660,4.36222685,124.21,124.19,0.05327234]
[1741806747964,4.36222685,124.2,124.19,0.05327234]
[1741806748769,12.41512685,124.2,124.19,0.05327234]
[1741806748970,4.36222685,124.2,124.14,13.45910837]
[1741806749170,17.82133522,124.19,124.14,13.45910837]
[1741806749370,4.36222685,124.18,124.16,8.0555]
[1741806750076,4.41626312,124.18,124.16,0.05432857]
[1741806750275,12.47066312,124.18,124.16,0.05432857]
[1741806750471,8.10843627,124.18,124.16,0.05432857]
[1741806750670,8.0559,124.16,124.13,249.6172]
[1741806750872,21.51500837,124.16,124.13,249.6172]
[1741806751168,13.45910837,124.16,124.13,241.56]
[1741806751365,46.01910837,124.16,124.13,241.56]
[1741806751966,46.01910837,124.16,124.13,249.67796997]
[1741806752172,46.01910837,124.16,124.13,241.62056997]
[1741806752367,8.0573,124.14,124.1,13.45910837]
[1741806752775,46.01910837,124.16,124.11,13.45910837]
[1741806752971,4.3586299,124.15,124.13,8.0571]
[1741806753575,4.41218066,124.15,124.13,8.11128432]
[1741806754178,17.87128903,124.15,124.13,0.05418432]
[1741806754367,17.87128903,124.15,124.09,6.3539]
[1741806754368,17.81462743,124.14,124.09,13.45910837]
[1741806754566,4.35551906,124.13,124.09,13.45910837]
[1741806754770,4.35551906,124.13,124.1,13.45910837]
[1741806755170,13.45910837,124.15,124.1,13.45910837]
[1741806755373,4.35423248,124.14,124.1,13.45910837]
[1741806755575,4.41432047,124.14,124.11,0.06165052]
[1741806755768,0.06008799,124.14,124.13,8.0569]
[1741806755973,4.41461611,124.14,124.13,8.0569]
[1741806756174,0.06008799,124.14,124.13,8.0569]
[1741806756679,0.06008799,124.14,124.11,13.52075889]
[1741806756877,0.06008799,124.14,124.12,8.0578]
[1741806757074,0.06008799,124.14,124.11,0.06165052]
[1741806757268,0.06008799,124.14,124.11,8.12015052]
[1741806758274,8.11698799,124.14,124.11,8.12015052]
[1741806758472,0.06008799,124.14,124.11,0.06165052]
[1741806758679,0.06008799,124.14,124.12,8.0578]
[1741806758978,0.06008799,124.14,124.11,0.06165052]
[1741806759276,50.36988541,124.13,124.11,0.06165052]
[1741806759477,46.01910837,124.13,124.11,0.06165052]
[1741806759879,8.0581,124.12,124.11,0.06165052]
[1741806760080,12.40745025,124.12,124.11,0.06165052]
[1741806760281,8.0581,124.12,124.11,0.06165052]
[1741806760479,21.51720837,124.12,124.11,0.06165052]
[1741806760673,21.51820837,124.11,124.08,8.0604]